bitfinex/quotes_SOLUSD_20250416
["timestamp","ask_amount","ask_price","bid_price","bid_amount"]
[1744794449125,23.05253462,125.46,125.42,31.02516452]
[1744794449326,23.05253462,125.47,125.42,31.02516452]
[1744794449621,7.735,125.48,125.42,31.02516452]
[1744794449821,23.05253462,125.46,125.41,49.05253462]
[1744794450029,23.05253462,125.44,125.4,49.05253462]
[1744794450322,23.05253462,125.43,125.39,34.85253462]
[1744794450522,23.05253462,125.44,125.39,42.82740459]
[1744794450729,23.05253462,125.45,125.41,23.05253462]
[1744794451023,110.635,125.48,125.41,23.05253462]
[1744794451024,15.70464566,125.48,125.42,23.05253462]
[1744794451324,0.03,125.49,125.46,23.05253462]
[1744794452209,0.03,125.49,125.46,31.02288801]
[1744794454231,0.03,125.49,125.46,7.97035339]
[1744794454536,0.03,125.49,125.45,31.02361366]
[1744794455612,0.03,125.49,125.46,23.05253462]
[1744794457241,23.05253462,125.47,125.39,27.91291171]
[1744794457408,23.05253462,125.44,125.4,23.05253462]
[1744794457604,23.05253462,125.45,125.41,7.97384578]
[1744794458512,23.05253462,125.45,125.41,31.0263804]
[1744794459212,31.02322068,125.46,125.41,31.0263804]
[1744794459739,23.05253462,125.46,125.42,31.02549858]
[1744794460117,31.0233506,125.46,125.42,7.97296396]
[1744794460438,7.97081598,125.46,125.41,31.0261228]
[1744794460751,23.05253462,125.46,125.42,23.05253462]
[1744794461036,23.05253462,125.46,125.41,31.0261228]
[1744794461217,14.41792388,125.45,125.41,22.39151206]
[1744794461415,14.41792388,125.45,125.41,7.97358818]
[1744794461630,6.5885,125.46,125.42,14.41792388]
[1744794461843,6.5885,125.46,125.42,22.39059157]
[1744794462721,28.97724347,125.46,125.42,7.97266769]
[1744794463909,21.00642388,125.46,125.42,7.97266769]
[1744794464337,14.41792388,125.47,125.42,22.39059157]
[1744794465225,14.41792388,125.48,125.43,14.41792388]
[1744794465524,40.21876862,125.49,125.44,14.41792388]
[1744794465715,40.21876862,125.49,125.47,14.41792388]
[1744794465716,0.03,125.49,125.47,14.41792388]
[1744794465916,0.03,125.49,125.46,26.0]
[1744794465917,0.03,125.49,125.46,48.38814006]
[1744794466135,0.03,125.49,125.46,33.97021618]
[1744794466437,14.41792388,125.48,125.44,33.97164333]
[1744794467637,14.41792388,125.45,125.41,7.97353666]
[1744794467834,0.03,125.49,125.44,14.41792388]
[1744794468035,0.03,125.49,125.47,14.41792388]
[1744794468342,0.03,125.49,125.45,14.41792388]
[1744794469540,0.03,125.49,125.45,22.3890488]
[1744794470939,0.03,125.49,125.46,14.41792388]
[1744794471738,0.03,125.49,125.47,7.97003267]
[1744794473251,0.03,125.49,125.47,22.38795655]
[1744794474830,0.03,125.49,125.48,33.06757274]
[1744794475237,0.03,125.49,125.48,44.84757274]
[1744794475443,0.03,125.5,125.48,44.84757274]
[1744794475628,0.03,125.5,125.49,40.41792388]
[1744794476524,0.03,125.5,125.49,48.38668633]
[1744794476725,1e-08,125.5,125.49,68.63093519]
[1744794477221,0.03,125.55,125.53,26.0]
[1744794477425,0.03,125.55,125.54,14.41792388]
[1744794478154,0.03,125.55,125.53,33.06757274]
[1744794478739,0.03,125.55,125.53,7.96602751]
[1744794478948,0.03,125.55,125.53,22.38395139]
[1744794479335,0.03,125.55,125.54,14.41792388]
[1744794479929,0.03,125.55,125.53,22.38395139]
[1744794481444,0.03,125.55,125.54,22.38351253]
[1744794483550,0.03,125.55,125.54,14.41792388]
[1744794484549,0.03,125.55,125.54,33.06757274]
[1744794485230,0.03,125.55,125.54,14.41792388]
[1744794485443,0.03,125.55,125.54,33.06757274]
[1744794485659,0.03,125.55,125.54,41.03316139]
[1744794485847,0.03,125.55,125.54,22.38351253]
[1744794486058,14.44792388,125.55,125.5,18.64964886]
[1744794486235,14.44792388,125.55,125.51,14.41792388]
[1744794486435,0.03,125.55,125.51,14.41792388]
[1744794487147,0.03,125.55,125.51,22.38488903]
[1744794487452,0.03,125.55,125.53,14.41792388]
[1744794487636,0.03,125.55,125.54,33.06757274]
[1744794488537,0.03,125.55,125.54,14.41792388]
[1744794488750,0.03,125.55,125.52,14.41792388]
[1744794488939,20.92812388,125.55,125.5,7.96787579]
[1744794489136,14.41792388,125.52,125.47,11.78]
[1744794489347,14.41792388,125.53,125.48,22.38702557]
[1744794489738,14.41792388,125.53,125.48,48.38702557]
[1744794490359,14.41792388,125.51,125.47,19.75001623]
[1744794490648,14.41792388,125.52,125.47,34.16794011]
[1744794490855,14.41792388,125.52,125.48,14.41792388]
[1744794491159,14.41792388,125.52,125.48,22.3869231]
[1744794491453,14.41792388,125.52,125.48,7.96899922]
[1744794491655,14.41792388,125.52,125.48,22.3869231]
[1744794492353,14.41792388,125.52,125.48,7.96899922]
[1744794492855,14.41792388,125.52,125.48,22.3869231]
[1744794493050,26.4225855,125.55,125.53,7.96622321]
[1744794493051,0.03,125.55,125.53,7.96622321]
[1744794493258,0.03,125.55,125.54,14.41792388]
[1744794494353,0.03,125.55,125.54,41.03316139]
[1744794495170,0.03,125.56,125.55,18.64964886]
[1744794495342,0.03,125.56,125.55,33.06757274]
[1744794496462,0.03,125.61,125.58,26.0]
[1744794496758,0.03,125.61,125.6,14.41792388]
[1744794497259,0.03,125.61,125.59,14.41792388]
[1744794497457,0.03,125.61,125.6,14.41792388]
[1744794498536,0.03,125.61,125.6,41.02935617]
[1744794498751,0.03,125.61,125.6,22.37970731]
[1744794499161,0.03,125.61,125.59,7.96220883]
[1744794499361,0.03,125.61,125.59,22.38013271]
[1744794499538,0.03,125.61,125.58,48.38072243]
[1744794499744,0.03,125.61,125.58,40.41792388]
[1744794500358,0.03,125.61,125.58,26.0]
[1744794501066,0.03,125.61,125.6,14.41792388]
[1744794501656,0.03,125.61,125.6,33.06757274]
[1744794502768,0.03,125.61,125.6,41.02935617]
[1744794503551,0.03,125.61,125.6,22.37970731]
[1744794503881,0.03,125.61,125.58,45.9076286]
[1744794503882,14.44792388,125.61,125.56,14.41792388]
[1744794504058,14.41792388,125.6,125.55,41.03252694]
[1744794504439,14.41792388,125.6,125.55,67.03252694]
[1744794504646,20.71182388,125.61,125.56,14.41792388]
[1744794504958,20.71182388,125.61,125.57,7.96368559]
[1744794505473,20.71182388,125.61,125.57,22.38160947]
[1744794506179,6.2939,125.61,125.58,14.41792388]
[1744794506553,0.03,125.61,125.59,14.41792388]
[1744794506969,0.03,125.61,125.59,22.38003958]
[1744794508289,0.03,125.61,125.58,33.96283554]
[1744794508870,0.03,125.61,125.58,48.38075942]
[1744794511891,0.03,125.61,125.6,14.41792388]
[1744794512701,0.03,125.61,125.58,48.38075942]
[1744794512898,0.03,125.61,125.59,14.41792388]
[1744794513510,0.03,125.61,125.6,14.41792388]
[1744794514006,0.03,125.61,125.6,22.37970731]
[1744794514408,0.03,125.61,125.6,41.02935617]
[1744794514582,0.03,125.61,125.6,22.37970731]
[1744794514785,0.03,125.61,125.6,7.96178343]
[1744794515088,0.03,125.61,125.6,22.37970731]
[1744794516912,0.03,125.61,125.6,41.02935617]
[1744794519013,2.9038231,125.62,125.61,18.64964886]
[1744794519190,2.9038231,125.62,125.61,33.06757274]
[1744794519390,1e-08,125.62,125.61,33.06757274]
[1744794520393,1e-08,125.62,125.61,14.41792388]
[1744794520709,1e-08,125.62,125.61,7.96114959]
[1744794520907,1e-08,125.62,125.6,40.41792388]
[1744794521087,1e-08,125.62,125.59,7.96241738]
[1744794522007,1e-08,125.62,125.59,22.38034126]
[1744794523191,1e-08,125.62,125.6,14.41792388]
[1744794523513,1e-08,125.62,125.59,27.86846085]
[1744794523690,1e-08,125.62,125.59,22.38034126]
[1744794525811,1e-08,125.62,125.59,7.96241738]
[1744794526111,1e-08,125.62,125.59,22.38034126]
[1744794530600,1e-08,125.62,125.61,14.41792388]
[1744794530802,1e-08,125.62,125.59,27.86846085]
[1744794531001,1e-08,125.62,125.59,7.96241738]
[1744794531002,14.41792389,125.62,125.59,7.96241738]
[1744794531223,1e-08,125.62,125.59,7.96241738]
[1744794532423,1e-08,125.62,125.59,22.38034126]
[1744794532720,1e-08,125.62,125.59,7.96241738]
[1744794536228,1e-08,125.62,125.59,22.38034126]
[1744794536521,1e-08,125.62,125.59,7.96241738]
[1744794536714,1e-08,125.62,125.61,7.96114959]
[1744794538925,1e-08,125.62,125.58,40.41792388]
[1744794539927,1e-08,125.62,125.58,48.38067655]
[1744794541221,14.41792389,125.62,125.58,33.96275267]
[1744794541418,14.41792389,125.62,125.55,11.76]
[1744794541419,20.50862388,125.61,125.55,11.76]
[1744794541614,14.41792388,125.59,125.55,7.9649542]
[1744794543440,1.5343,125.6,125.56,14.41792388]
[1744794544014,15.95222388,125.6,125.56,14.41792388]
[1744794544242,14.41792388,125.59,125.55,7.9649542]
[1744794545247,14.41792388,125.59,125.54,7.96558865]
[1744794545436,14.41792388,125.59,125.54,22.38351253]
[1744794545615,1.5343,125.6,125.57,14.41792388]
[1744794545815,1.5343,125.6,125.56,14.41792388]
[1744794547243,1.5343,125.6,125.57,7.96368559]
[1744794549134,14.41792388,125.59,125.55,7.9649542]
[1744794549524,23.91415165,125.6,125.55,22.38287808]
[1744794549944,15.95222388,125.6,125.55,22.38287808]
[1744794550152,1.5343,125.6,125.56,14.41792388]
[1744794550648,15.95222388,125.6,125.56,14.41792388]
[1744794551541,1.5343,125.6,125.57,7.96368559]
[1744794552853,15.95222388,125.6,125.56,7.96431984]
[1744794553462,15.95222388,125.6,125.54,19.91367129]
[1744794553463,14.41792388,125.59,125.53,26.0]
[1744794553632,14.41792388,125.57,125.54,7.96558865]
[1744794554337,14.41792388,125.56,125.53,7.96598254]
[1744794554544,14.41792388,125.56,125.51,22.38541651]
[1744794554735,14.41792388,125.55,125.51,22.38541651]
[1744794555054,20.68032388,125.55,125.51,7.96749263]
[1744794555462,14.41792388,125.53,125.5,8.03068357]
[1744794555641,14.41792388,125.51,125.5,0.063]
[1744794556659,20.0,125.48,125.46,0.063]
[1744794556828,14.41792388,125.47,125.46,0.063]
[1744794558728,27.80112388,125.47,125.46,0.063]
[1744794558925,54.42080541,125.47,125.46,0.063]
[1744794559343,35.77115655,125.47,125.46,0.063]
[1744794560828,60.98730541,125.47,125.46,0.063]
[1744794563354,143.88730541,125.47,125.46,0.063]
[1744794568954,129.46938153,125.47,125.46,0.063]
[1744794569147,143.88730541,125.47,125.46,0.063]
[1744794569959,20.0,125.44,125.43,0.063]
[1744794570153,34.41792388,125.44,125.43,0.063]
[1744794571065,14.41792388,125.44,125.43,0.063]
[1744794571557,31.76,125.48,125.43,0.063]
[1744794571860,14.41792388,125.47,125.43,14.48092388]
[1744794572163,14.41792388,125.47,125.43,0.063]
[1744794572660,14.41792388,125.47,125.43,8.03557434]
[1744794573266,31.76,125.48,125.44,14.41792388]
[1744794573460,46.17792388,125.48,125.44,14.41792388]
[1744794573667,46.17792388,125.48,125.43,22.45349822]
[1744794575468,31.76,125.48,125.43,22.45349822]
[1744794575648,46.17792388,125.48,125.43,22.45349822]
[1744794575963,14.41792388,125.47,125.43,8.03557434]
[1744794577063,22.38808871,125.47,125.43,8.03557434]
[1744794577365,14.41792388,125.45,125.43,0.063]
[1744794578242,14.41792388,125.46,125.43,0.063]
[1744794579467,14.41792388,125.47,125.43,14.48092388]
[1744794579670,11.76,125.48,125.44,14.41792388]
[1744794579869,0.03,125.53,125.47,14.41792388]
[1744794580040,0.03,125.53,125.51,14.41792388]
[1744794581862,0.03,125.53,125.5,22.38549315]
[1744794582049,0.03,125.53,125.52,14.41792388]
[1744794582446,0.03,125.53,125.5,33.96756927]
[1744794582447,0.03,125.53,125.51,14.41792388]
[1744794583048,0.03,125.53,125.49,22.38639579]
[1744794583294,14.41792388,125.52,125.48,48.38706096]
[1744794583469,14.41792388,125.52,125.48,33.96913708]
[1744794583663,14.41792388,125.52,125.48,48.38706096]
[1744794584257,14.44792388,125.53,125.48,48.38706096]
[1744794584452,0.03,125.53,125.5,14.41792388]
[1744794585177,0.03,125.53,125.51,14.41792388]
[1744794585377,0.03,125.53,125.52,14.41792388]
[1744794585575,0.03,125.53,125.51,22.38492953]
[1744794586076,14.41792388,125.52,125.47,7.97003267]
[1744794586252,14.41792388,125.5,125.44,1.5395]
[1744794586448,14.41792388,125.5,125.45,40.41792388]
[1744794587079,14.41792388,125.5,125.46,14.41792388]
[1744794587288,22.38541981,125.51,125.46,22.38798824]
[1744794587676,14.41792388,125.5,125.46,7.97006436]
[1744794588588,22.38541981,125.51,125.46,22.38798824]
[1744794588985,14.41792388,125.5,125.46,7.97006436]
[1744794589784,22.38541981,125.51,125.46,22.38798824]
[1744794589987,14.41792388,125.51,125.46,22.38798824]
[1744794591793,14.41792388,125.52,125.47,14.41792388]
[1744794592000,14.41792388,125.52,125.48,14.41792388]
[1744794592172,14.41792388,125.52,125.47,14.41792388]
[1744794592587,14.41792388,125.52,125.48,7.96939751]
[1744794593487,14.41792388,125.52,125.47,22.38767383]
[1744794593695,14.41792388,125.51,125.47,7.96974995]
[1744794593900,14.41792388,125.52,125.47,22.38767383]
[1744794594079,26.20792388,125.53,125.48,14.41792388]
[1744794594283,0.03,125.53,125.51,14.41792388]
[1744794594474,0.03,125.53,125.52,14.41792388]
[1744794594676,0.03,125.53,125.52,22.38478175]
[1744794594875,0.03,125.53,125.52,48.38478175]
[1744794601310,1e-08,125.53,125.52,41.03443061]
[1744794601610,0.03,125.55,125.54,26.0]
[1744794601782,0.03,125.55,125.54,40.41792388]
[1744794602509,0.03,125.55,125.54,48.38351253]
[1744794603103,0.03,125.55,125.54,67.03316139]
[1744794604717,0.03,125.55,125.54,48.38351253]
[1744794605858,0.03,125.55,125.54,40.41792388]
[1744794606033,0.03,125.55,125.53,34.12364947]
[1744794606620,0.03,125.55,125.54,14.41792388]
[1744794606828,0.03,125.55,125.54,22.38351253]
[1744794608710,0.03,125.55,125.54,67.03316139]
[1744794609294,0.03,125.56,125.54,41.03316139]
[1744794609509,0.03,125.59,125.58,44.64964886]
[1744794609722,0.03,125.59,125.58,26.0]
[1744794609916,0.03,125.59,125.55,26.0]
[1744794610222,14.44792388,125.59,125.55,26.0]
[1744794610531,14.44792388,125.59,125.56,7.96431984]
[1744794611327,0.03,125.59,125.56,7.96431984]
[1744794611530,14.44792388,125.59,125.56,7.96431984]
[1744794611712,0.03,125.59,125.56,22.38224372]
[1744794612105,0.03,125.59,125.56,7.96431984]
[1744794612933,20.0,125.5,125.42,8.0359602]
[1744794613136,14.41792388,125.44,125.42,0.063]
[1744794614010,60.57584776,125.44,125.42,0.063]
[1744794614421,68.54778653,125.44,125.42,0.063]
[1744794614624,54.12986265,125.44,125.42,0.063]
[1744794615132,62.79582361,125.44,125.42,0.063]
[1744794615331,85.87970845,125.44,125.42,0.063]
[1744794615506,106.13195731,125.44,125.42,0.063]
[1744794615942,83.04807247,125.44,125.42,0.063]
[1744794616430,106.13195731,125.44,125.42,0.063]
[1744794617234,94.39195731,125.44,125.42,0.063]
[1744794617418,83.04807247,125.44,125.42,0.063]
[1744794617733,106.13195731,125.44,125.42,0.063]
[1744794622714,59.96418763,125.44,125.42,0.063]
[1744794622916,106.13195731,125.44,125.42,0.063]
[1744794623408,14.29531135,125.45,125.42,0.063]
[1744794623724,34.82388484,125.45,125.42,0.063]
[1744794623921,6.1545,125.49,125.44,31.05535289]
[1744794624231,11.74,125.5,125.46,23.08388484]
[1744794624534,34.82388484,125.5,125.46,23.08388484]
[1744794624912,42.79223561,125.5,125.45,23.08388484]
[1744794625107,23.08388484,125.47,125.43,57.11933477]
[1744794626122,23.08388484,125.45,125.43,0.063]
[1744794626730,20.0,125.48,125.43,0.063]
[1744794626731,23.08388484,125.47,125.43,0.063]
[1744794627030,23.08388484,125.47,125.43,8.03548475]
[1744794627206,23.08388484,125.46,125.43,0.063]
[1744794627410,23.08388484,125.45,125.43,0.063]
[1744794627638,23.08388484,125.46,125.43,0.063]
[1744794627933,23.08388484,125.47,125.43,0.063]
[1744794628138,7.96876245,125.49,125.43,31.11927047]
[1744794628348,23.08388484,125.47,125.43,31.11927047]
[1744794628539,7.96876245,125.49,125.43,31.11927047]
[1744794628540,122.60829013,125.5,125.44,23.08388484]
[1744794628735,6.1545,125.52,125.47,23.08388484]
[1744794628919,7.9658041,125.54,125.49,23.08388484]
[1744794629242,23.08388484,125.53,125.46,26.0]
[1744794629546,23.08388484,125.51,125.47,23.08388484]
[1744794630040,23.08388484,125.51,125.47,31.05359653]
[1744794630415,23.08388484,125.51,125.47,7.96971169]
[1744794630740,23.08388484,125.51,125.47,31.05359653]
[1744794631233,7.96638896,125.53,125.48,23.08388484]
[1744794631541,23.08388484,125.52,125.47,31.05359653]
[1744794632245,34.82388484,125.53,125.49,23.08388484]
[1744794633321,34.82388484,125.53,125.48,31.05294777]
[1744794633819,23.08388484,125.52,125.47,31.05364872]
[1744794634237,23.08388484,125.52,125.47,7.96976388]
[1744794634442,23.08388484,125.52,125.48,23.08388484]
[1744794635341,34.82388484,125.53,125.48,23.08388484]
[1744794635750,23.08388484,125.52,125.48,23.08388484]
[1744794635926,23.08388484,125.51,125.46,33.97044913]
[1744794636124,23.08388484,125.5,125.46,33.97044913]
[1744794636841,23.08388484,125.5,125.44,7.97193877]
[1744794637060,23.08388484,125.47,125.43,8.03535568]
[1744794637224,23.08388484,125.45,125.43,0.063]
[1744794639228,11.74,125.48,125.44,23.08388484]
[1744794639544,11.74,125.48,125.45,23.08388484]
[1744794639734,34.82388484,125.48,125.44,23.08388484]
[1744794640150,34.82388484,125.48,125.43,23.14688484]
[1744794640335,23.08388484,125.47,125.43,0.063]
[1744794640633,11.74,125.48,125.43,0.063]
[1744794640634,34.82388484,125.48,125.43,23.14688484]
[1744794641330,23.08388484,125.47,125.43,0.063]
[1744794641531,23.08388484,125.47,125.43,8.03548309]
[1744794642437,11.74,125.48,125.45,23.08388484]
[1744794643123,11.74,125.48,125.46,23.08388484]
[1744794643325,23.08388484,125.5,125.47,7.97003267]
[1744794644048,23.08388484,125.48,125.44,26.0]
[1744794644249,27.96822803,125.5,125.44,49.08388484]
[1744794644441,23.08388484,125.49,125.45,23.08388484]
[1744794645261,23.08388484,125.5,125.46,23.08388484]
[1744794645452,23.08388484,125.5,125.45,31.05518814]
[1744794645641,23.08388484,125.5,125.46,23.08388484]
[1744794646126,23.08388484,125.51,125.46,23.08388484]
[1744794647151,34.82388484,125.53,125.48,23.08388484]
[1744794647348,23.08388484,125.51,125.47,7.97003267]
[1744794647656,23.08388484,125.51,125.47,31.05391751]
[1744794648654,23.08388484,125.5,125.46,33.97045228]
[1744794649150,19.70630217,125.53,125.46,57.05433712]
[1744794649151,23.08388484,125.51,125.46,57.05433712]
[1744794651361,23.08388484,125.52,125.47,23.08388484]
[1744794651653,23.08388484,125.52,125.48,7.96939751]
[1744794652023,19.70652865,125.53,125.48,7.96939751]
[1744794652024,42.79041349,125.53,125.48,31.05328235]
[1744794652227,23.08388484,125.51,125.47,31.05363826]
[1744794652849,23.08388484,125.51,125.46,49.08388484]
[1744794653154,23.08388484,125.51,125.46,57.05424788]
[1744794653554,31.0513805,125.51,125.46,57.05424788]
[1744794653758,23.08388484,125.49,125.45,7.97115806]
[1744794653932,23.08388484,125.49,125.45,31.0550429]
[1744794654131,27.96714304,125.52,125.46,23.08388484]
[1744794654455,23.08388484,125.51,125.46,23.08388484]
[1744794655262,23.08388484,125.51,125.47,7.97003267]
[1744794655565,23.08388484,125.52,125.47,31.05391751]
[1744794656855,23.08388484,125.5,125.47,7.97003267]
[1744794657056,23.08388484,125.51,125.47,7.97003267]
[1744794659156,23.08388484,125.52,125.48,23.08388484]
[1744794659455,34.82388484,125.53,125.48,23.08388484]
[1744794660044,34.82388484,125.53,125.49,23.08388484]
[1744794660245,6.1732,125.58,125.52,23.08388484]
[1744794660455,289.85319938,125.59,125.53,23.08388484]
[1744794660647,23.08388484,125.55,125.51,24.59248484]
[1744794660953,23.08388484,125.54,125.5,57.05201233]
[1744794661154,23.08388484,125.53,125.5,33.96812749]
[1744794661657,23.08388484,125.55,125.5,57.05201233]
[1744794662130,23.08388484,125.54,125.5,57.05201233]
[1744794662560,23.08388484,125.55,125.51,23.08388484]
[1744794662759,23.08388484,125.55,125.5,57.05201233]
[1744794663233,23.08388484,125.54,125.5,57.05201233]
[1744794663730,23.08388484,125.54,125.5,33.96812749]
[1744794663936,23.08388484,125.54,125.5,26.0]
[1744794664139,23.08388484,125.53,125.5,26.0]
[1744794664343,23.08388484,125.54,125.5,57.05196052]
[1744794664858,31.04949139,125.54,125.5,26.0]
[1744794665551,23.08388484,125.53,125.49,7.96844874]
[1744794665757,23.08388484,125.51,125.47,7.9697333]
[1744794665932,23.08388484,125.5,125.46,23.08388484]
[1744794666854,23.08388484,125.5,125.46,31.05436672]
[1744794668258,23.08388484,125.51,125.46,31.05436672]
[1744794668454,23.08388484,125.53,125.48,23.08388484]
[1744794668661,34.82388484,125.54,125.49,49.08388484]
[1744794669262,11.74,125.54,125.49,49.08388484]
[1744794669571,34.82388484,125.54,125.5,23.08388484]
[1744794669861,11.74,125.54,125.5,23.08388484]
[1744794670059,11.74,125.54,125.5,31.05152161]
[1744794670763,42.78953118,125.54,125.5,7.96763677]
[1744794670949,11.74,125.54,125.5,31.05152161]
[1744794671150,34.82388484,125.54,125.5,31.05152161]
[1744794671348,7.99274882,125.59,125.53,49.08388484]
[1744794671660,7.99274882,125.59,125.55,23.08388484]
[1744794671853,23.11388484,125.59,125.55,23.08388484]
[1744794672165,23.11388484,125.59,125.56,7.96431984]
[1744794672666,31.07635541,125.59,125.55,7.9646488]
[1744794672857,0.03,125.59,125.55,31.04853364]
[1744794673047,0.03,125.59,125.56,23.08388484]
[1744794674045,0.03,125.59,125.57,7.96368559]
[1744794675070,0.03,125.59,125.57,31.04757043]
[1744794677047,0.03,125.59,125.58,23.08388484]
[1744794678053,0.03,125.59,125.57,7.96368559]
[1744794678565,0.03,125.59,125.57,31.04757043]
[1744794679845,0.03,125.59,125.56,33.96415941]
[1744794680268,23.11388484,125.59,125.56,26.0]
[1744794680569,23.08388484,125.57,125.52,7.96685787]
[1744794680901,23.08388484,125.54,125.5,7.96812749]
[1744794681051,23.08388484,125.54,125.5,33.96812749]
[1744794681253,23.08388484,125.52,125.49,7.96876245]
[1744794681674,23.08388484,125.53,125.49,7.96876245]
[1744794681971,23.08388484,125.53,125.49,31.05264729]
[1744794682167,7.964432,125.56,125.5,23.08388484]
[1744794682470,7.964432,125.56,125.49,31.05264729]
[1744794682471,23.08388484,125.54,125.49,31.05264729]
[1744794682674,23.08388484,125.53,125.49,57.05264729]
[1744794682875,23.08388484,125.53,125.49,33.96876245]
[1744794683249,27.964432,125.56,125.49,33.96876245]
[1744794683250,23.08388484,125.52,125.49,33.96876245]
[1744794684178,20.0,125.56,125.49,26.0]
[1744794684179,23.08388484,125.51,125.49,26.0]
[1744794684364,23.08388484,125.5,125.49,26.0]
[1744794684675,27.96558865,125.54,125.49,33.9687277]
[1744794684974,23.08388484,125.51,125.49,26.0]
[1744794685275,23.08388484,125.51,125.49,33.96874808]
[1744794685457,27.96558865,125.54,125.49,33.96874808]
[1744794685662,23.08388484,125.52,125.49,33.96874808]
[1744794685870,23.08388484,125.52,125.49,33.96873405]
[1744794686983,23.08388484,125.52,125.49,26.0]
[1744794687179,23.08388484,125.51,125.49,26.0]
[1744794687570,23.08388484,125.52,125.49,33.96875139]
[1744794688180,23.08388484,125.53,125.49,57.05263623]
[1744794688394,23.08388484,125.53,125.49,33.96875139]
[1744794688772,7.965783,125.54,125.49,33.96875139]
[1744794688970,7.965783,125.54,125.49,26.0]
[1744794688971,23.08388484,125.51,125.49,26.0]
[1744794691463,23.08388484,125.51,125.49,33.96872064]
[1744794691664,23.08388484,125.52,125.49,33.96872064]
[1744794692158,23.08388484,125.53,125.49,33.96872064]
[1744794693186,23.08388484,125.53,125.49,57.05260548]
[1744794694273,23.08388484,125.53,125.49,33.96872064]
[1744794695671,23.08388484,125.53,125.49,7.96872064]
[1744794696090,23.08388484,125.52,125.49,7.96872064]
[1744794697192,19.6851918,125.55,125.49,7.96872064]
[1744794697398,14.40053765,125.53,125.49,22.36925829]
[1744794697777,14.40053765,125.52,125.49,7.96872064]
[1744794697977,14.40053765,125.53,125.49,7.96872064]
[1744794698190,14.40053765,125.53,125.49,22.36925829]
[1744794698676,14.40053765,125.53,125.49,7.96872064]
[1744794699691,22.36680313,125.53,125.49,7.96872064]
[1744794699891,14.40053765,125.52,125.48,33.96921682]
[1744794700199,14.40053765,125.51,125.48,33.96921682]
[1744794701294,14.40053765,125.51,125.48,7.96921682]
[1744794701994,22.3682335,125.51,125.46,40.40053765]
[1744794702301,14.40053765,125.5,125.46,40.40053765]
[1744794702600,14.40053765,125.51,125.47,14.40053765]
[1744794703410,14.40053765,125.51,125.46,48.37092051]
[1744794703603,14.40053765,125.5,125.46,48.37092051]
[1744794705287,14.40053765,125.51,125.47,14.40053765]
[1744794705487,14.40053765,125.53,125.48,14.40053765]
[1744794705791,14.40053765,125.54,125.49,14.40053765]
[1744794705991,14.40053765,125.53,125.49,14.40053765]
[1744794707199,14.40053765,125.53,125.49,33.96852197]
[1744794707407,14.40053765,125.53,125.49,48.36905962]
[1744794708187,14.40053765,125.53,125.49,33.96852197]
[1744794708503,22.36676678,125.53,125.49,33.96852197]
[1744794708681,14.40053765,125.52,125.49,33.96852197]
[1744794709389,22.36676678,125.53,125.49,33.96852197]
[1744794709890,14.40053765,125.52,125.49,33.96852197]
[1744794710099,14.40053765,125.53,125.49,33.96852197]
[1744794711096,14.40053765,125.51,125.46,7.9703633]
[1744794711288,14.40053765,125.52,125.48,26.0]
[1744794711490,14.40053765,125.52,125.48,33.96879751]
[1744794711693,22.36692815,125.53,125.48,48.36933516]
[1744794712005,22.36692815,125.53,125.48,22.36933516]
[1744794713410,14.40053765,125.52,125.48,7.96879751]
[1744794715216,14.40053765,125.52,125.47,40.40053765]
[1744794715407,27.87956029,125.54,125.45,7.97106296]
[1744794715408,22.36959261,125.49,125.45,7.97106296]
[1744794715717,14.40053765,125.49,125.45,7.97106296]
[1744794717497,14.40053765,125.49,125.45,22.37160061]
[1744794717798,22.36897321,125.5,125.45,22.37160061]
[1744794717998,14.40053765,125.5,125.45,22.37160061]
[1744794719116,14.40053765,125.48,125.44,42.12696572]
[1744794719299,14.40053765,125.46,125.44,26.063]
[1744794720310,14.40053765,125.47,125.44,26.063]
[1744794721309,14.40053765,125.46,125.44,26.063]
[1744794721906,14.40053765,125.46,125.44,34.03488231]
[1744794722521,7.96953906,125.48,125.44,26.063]
[1744794722822,14.40053765,125.45,125.44,0.063]
[1744794725321,22.37184095,125.45,125.44,0.063]
[1744794728007,14.40053765,125.45,125.44,0.063]
[1744794728206,14.40053765,125.46,125.44,0.063]
[1744794728725,14.40053765,125.45,125.44,0.063]
[1744794730525,22.37184095,125.45,125.44,0.063]